fUSD/lending_fUSD_20241202
["ID","MTS","AMOUNT","RATE_DAILY","PERIOD"]
[343983886,1733169533923,-500.0,0.00025547,120]
[343983887,1733169533964,-500.0,0.00025547,120]
[343983888,1733169534003,-656.68,0.00025547,120]
[343983889,1733169534048,-500.0,0.00025547,120]
[343983890,1733169534088,-773.83,0.00025547,120]
[343983891,1733169534129,-500.0,0.00025547,120]
[343983892,1733169534170,-500.0,0.00025547,120]
[343983893,1733169534210,-500.0,0.00025547,120]
[343983894,1733169534249,-1243.26,0.00025547,120]
[343983895,1733169534289,-500.0,0.00025547,120]
[343983896,1733169534330,-1030.51,0.00025547,120]
[343983897,1733169534372,-1384.95,0.00025547,120]
[343983898,1733169534417,-1013.12,0.00025547,120]
[343983899,1733169534458,-843.35,0.00025547,120]
[343983900,1733169534500,-500.0,0.00025547,120]
[343983901,1733169534542,-3564.37,0.00025547,120]
[343983902,1733169534586,-2876.71,0.00025547,120]
[343983903,1733169534630,-500.0,0.00025547,120]
[343983904,1733169534670,-1145.3,0.00025547,120]
[343983905,1733169534713,-500.0,0.00025547,120]
[343983906,1733169534752,-3061.04,0.00025547,120]
[343983907,1733169534792,-880.09,0.00025547,120]
[343983908,1733169534831,-500.0,0.00025547,120]
[343983909,1733169534870,-500.0,0.00025547,120]
[343983910,1733169534910,-500.0,0.00025547,120]
[343983911,1733169534949,-912.74,0.00025547,120]
[343983912,1733169534988,-500.0,0.00025547,120]
[343983913,1733169535027,-673.42,0.00025547,120]
[343983914,1733169535063,-555.24,0.00025547,120]
[343983915,1733169535102,-1077.65,0.00025547,120]
[343983916,1733169535139,-500.0,0.00025547,120]
[343983917,1733169535175,-500.0,0.00025547,120]
[343983918,1733169535212,-660.74,0.00025547,120]
[343983919,1733169535250,-619.73,0.00025547,120]
[343983920,1733169535294,-500.0,0.00025547,120]
[343983921,1733169535335,-500.0,0.00025547,120]
[343983922,1733169535379,-1296.37,0.00025547,120]
[343983923,1733169535422,-1749.32,0.00025547,120]
[343983924,1733169535464,-500.0,0.00025547,120]
[343983925,1733169535507,-2629.14,0.00025547,120]
[343983926,1733169535550,-576.10272018,0.00025547,120]
[343983927,1733169535594,-1495.36,0.00025547,120]
[343983928,1733169535652,-500.0,0.00025547,120]
[343983929,1733169535693,-500.0,0.00025547,120]
[343983930,1733169535735,-3065.3,0.00025547,120]
[343983931,1733169535775,-1199.44,0.00025547,120]
[343983932,1733169535823,-1241.92,0.00025547,120]
[343983933,1733169535865,-6015.4,0.00025547,120]
[343983934,1733169535908,-500.0,0.00025547,120]
[343983935,1733169535949,-1859.06,0.00025547,120]
[343983936,1733169535990,-500.0,0.00025547,120]
[343983937,1733169536031,-2687.99,0.00025547,120]
[343983938,1733169536069,-500.0,0.00025547,120]
[343983939,1733169536112,-500.0,0.00025547,120]
[343983940,1733169536156,-500.0,0.00025547,120]
[343983941,1733169536203,-500.0,0.00025547,120]
[343983942,1733169536246,-1568.09,0.00025547,120]
[343983943,1733169536293,-3464.61,0.00025547,120]
[343983944,1733169536339,-2514.24,0.00025547,120]
[343983945,1733169536385,-500.0,0.00025547,120]
[343983946,1733169536428,-500.0,0.00025547,120]
[343983947,1733169536473,-2460.03,0.00025547,120]
[343983948,1733169536898,-2106.86,0.00025547,120]
[343983949,1733169536942,-735.25,0.00025547,120]
[343983950,1733169536984,-500.0,0.00025547,120]
[343983951,1733169537025,-500.0,0.00025547,120]
[343983952,1733169537073,-532.7,0.00025547,120]
[343983953,1733169537121,-722.79,0.00025547,120]
[343983954,1733169537182,-500.0,0.00025547,120]
[343983955,1733169537232,-1332.55,0.00025547,120]
[343983956,1733169537275,-563.99,0.00025547,120]
[343983957,1733169537318,-500.0,0.00025547,120]
[343983958,1733169537360,-1806.28,0.00025547,120]
[343983959,1733169537408,-2899.78,0.00025547,120]
[343983960,1733169537451,-1779.74,0.00025547,120]
[343983961,1733169537495,-574.61,0.00025547,120]
[343983962,1733169537543,-1203.83,0.00025547,120]
[343983963,1733169537589,-755.11,0.00025547,120]
[343983964,1733169537637,-3535.97,0.00025547,120]
[343983965,1733169537684,-3527.98,0.00025547,120]
[343983966,1733169537728,-500.0,0.00025547,120]
[343983967,1733169537772,-500.0,0.00025547,120]
[343983968,1733169537817,-500.0,0.00025547,120]
[343983969,1733169537861,-500.0,0.00025547,120]
[343983970,1733169537907,-636.80158195,0.00025547,120]
[343983971,1733169537950,-500.0,0.00025547,120]
[343983972,1733169537992,-605.28,0.00025547,120]
[343983973,1733169538035,-500.0,0.00025547,120]
[343983974,1733169538077,-1404.0,0.00025547,120]
[343983975,1733169538120,-4359.98,0.00025547,120]
[343983976,1733169538165,-942.74,0.00025547,120]
[343983977,1733169538208,-500.0,0.00025547,120]
[343983978,1733169538250,-1539.81,0.00025547,120]
[343983979,1733169538292,-578.22,0.00025547,120]
[343983980,1733169538335,-500.0,0.00025547,120]
[343983981,1733169538380,-3127.0,0.00025547,120]
[343983982,1733169538433,-1786.89,0.00025547,120]
[343983983,1733169538481,-500.0,0.00025547,120]
[343983984,1733169538533,-544.99,0.00025547,120]
[343983985,1733169538580,-714.85,0.00025547,120]
[343983986,1733169538628,-564.14,0.00025547,120]
[343983987,1733169538675,-500.0,0.00025547,120]
[343983988,1733169538722,-2040.9,0.00025547,120]
[343983989,1733169538765,-556.38,0.00025547,120]
[343983990,1733169538809,-2988.04,0.00025547,120]
[343983991,1733169538853,-500.0,0.00025547,120]
[343983992,1733169538897,-969.25,0.00025547,120]
[343983993,1733169538940,-500.0,0.00025547,120]
[343983994,1733169538984,-1157.3,0.00025547,90]
[343983995,1733169539026,-500.0,0.00025547,120]
[343983996,1733169539070,-500.0,0.00025547,120]
[343983997,1733169539112,-500.0,0.00025547,120]
[343983998,1733169539155,-2248.53,0.00025547,120]
[343983999,1733169539197,-517.62,0.00025547,120]
[343984000,1733169539241,-500.0,0.00025547,120]
[343984001,1733169539284,-1824.16,0.00025547,120]
[343984002,1733169539329,-511.8,0.00025547,120]
[343984003,1733169539373,-500.0,0.00025547,120]
[343984004,1733169539422,-500.0,0.00025547,120]
[343984005,1733169539465,-1279.61,0.00025547,120]
[343984006,1733169539508,-2613.43,0.00025547,120]
[343984007,1733169539552,-500.0,0.00025547,120]
[343984008,1733169539596,-500.0,0.00025547,120]
[343984009,1733169539643,-990.08,0.00025547,120]
[343984010,1733169539686,-1534.8,0.00025547,120]
[343984011,1733169539729,-500.0,0.00025547,120]
[343984012,1733169539770,-500.0,0.00025547,120]
[343984013,1733169539811,-3161.91,0.00025547,120]
[343984014,1733169539854,-1429.88,0.00025547,120]
[343984015,1733169539896,-500.0,0.00025547,120]
[343984016,1733169539937,-500.0,0.00025547,120]
[343984017,1733169539978,-500.0,0.00025547,120]
[343984018,1733169540022,-500.0,0.00025547,120]
[343984019,1733169540066,-2238.73,0.00025547,120]
[343984020,1733169540111,-5104.83,0.00025547,120]
[343984021,1733169540159,-500.0,0.00025547,120]
[343984022,1733169540203,-500.0,0.00025547,120]
[343984023,1733169540247,-5518.37,0.00025547,120]
[343984024,1733169540291,-1022.75,0.00025547,120]
[343984025,1733169540339,-2768.85,0.00025547,120]
[343984026,1733169540384,-500.0,0.00025547,120]
[343984027,1733169540426,-759.91,0.00025547,120]
[343984028,1733169540469,-500.0,0.00025547,120]
[343984029,1733169540512,-500.0,0.00025547,120]
[343984030,1733169540557,-991.35,0.00025547,120]
[343984031,1733169540601,-3637.14,0.00025547,120]
[343984032,1733169540646,-1521.0,0.00025547,120]
[343984033,1733169540686,-507.65,0.00025547,120]
[343984034,1733169540726,-794.35,0.00025547,120]
[343984035,1733169540764,-1741.18,0.00025547,120]
[343984036,1733169540805,-2422.35,0.00025547,120]
[343984037,1733169540846,-3182.52,0.00025547,120]
[343984038,1733169540887,-500.0,0.00025547,120]
[343984039,1733169540931,-500.0,0.00025547,120]
[343984040,1733169540977,-951.11,0.00025547,120]
[343984041,1733169541020,-2121.78,0.00025547,120]
[343984042,1733169541064,-595.07,0.00025547,120]
[343984043,1733169541386,-500.0,0.00025547,120]
[343984044,1733169541429,-2247.5,0.00025547,120]
[343984045,1733169541473,-3494.81,0.00025547,120]
[343984046,1733169541516,-500.0,0.00025547,120]
[343984047,1733169541564,-500.71,0.00025547,120]
[343984048,1733169541616,-887.31,0.00025547,120]
[343984049,1733169541659,-500.0,0.00025547,120]
[343984050,1733169541701,-1022.28,0.00025547,120]
[343984051,1733169541744,-500.0,0.00025547,120]
[343984052,1733169541786,-2885.66,0.00025547,120]
[343984053,1733169541827,-500.0,0.00025547,120]
[343984054,1733169541868,-500.0,0.00025547,120]
[343984055,1733169541912,-500.0,0.00025547,120]
[343984056,1733169541955,-2090.17,0.00025547,120]
[343984057,1733169541996,-500.0,0.00025547,120]
[343984058,1733169542039,-500.0,0.00025547,120]
[343984059,1733169542082,-2894.02,0.00025547,120]
[343984060,1733169542124,-1896.23,0.00025547,120]
[343984061,1733169542167,-500.0,0.00025547,120]
[343984062,1733169542211,-1465.8,0.00025547,120]
[343984063,1733169542262,-695.56,0.00025547,120]
[343984064,1733169542307,-2405.55,0.00025547,120]
[343984065,1733169542352,-500.0,0.00025547,120]
[343984066,1733169542397,-500.0,0.00025547,120]
[343984067,1733169542440,-500.0,0.00025547,120]
[343984068,1733169542483,-1133.27,0.00025547,120]
[343984069,1733169542529,-990.47,0.00025547,120]
[343984070,1733169542579,-500.0,0.00025547,120]
[343984071,1733169542623,-500.0,0.00025547,120]
[343984072,1733169542669,-500.0,0.00025547,120]
[343984073,1733169542711,-6317.99,0.00025547,120]
[343984074,1733169542753,-1730.55,0.00025547,120]
[343984075,1733169542795,-4472.97,0.00025547,120]
[343984076,1733169542839,-637.9,0.00025547,120]
[343984077,1733169542885,-5537.71,0.00025547,120]
[343984078,1733169542927,-500.0,0.00025547,120]
[343984079,1733169542969,-500.0,0.00025547,120]
[343984080,1733169543012,-2516.67,0.00025547,120]
[343984081,1733169543057,-895.29,0.00025547,120]
[343984082,1733169543104,-500.0,0.00025547,120]
[343984083,1733169543151,-500.0,0.00025547,120]
[343984084,1733169543198,-500.0,0.00025547,120]
[343984085,1733169543248,-715.32,0.00025547,120]
[343984086,1733169543297,-757.06,0.00025547,120]
[343984087,1733169543347,-500.0,0.00025547,120]
[343984088,1733169543395,-3249.49,0.00025547,120]
[343984089,1733169543443,-500.0,0.00025547,120]
[343984090,1733169543490,-641.3,0.00025547,120]
[343984091,1733169543542,-500.0,0.00025547,120]
[343984092,1733169543588,-192.52586972,0.00025547,120]
[343984093,1733169543638,-6268.63,0.00025547,120]
[343984094,1733169543686,-572.38,0.00025547,30]
[343984095,1733169543734,-500.0,0.00025547,120]
[343984096,1733169543784,-1448.03,0.00025547,120]
[343984097,1733169543833,-500.0,0.00025547,120]
[343984098,1733169543885,-500.0,0.00025547,120]
[343984099,1733169543934,-3834.82,0.00025547,120]
[343984100,1733169543982,-3881.75,0.00025547,120]
[343984101,1733169544031,-1200.26,0.00025547,120]
[343984102,1733169544080,-500.0,0.00025547,120]
[343984103,1733169544126,-4386.48,0.00025547,120]
[343984104,1733169544173,-500.0,0.00025547,120]
[343984105,1733169544219,-229.00098294,0.00025547,120]
[343984106,1733169544265,-4939.59,0.00025547,120]
[343984107,1733169544310,-500.0,0.00025547,120]
[343984108,1733169544357,-1160.53,0.00025547,120]
[343984109,1733169544403,-1362.16,0.00025547,120]
[343984110,1733169544449,-500.0,0.00025547,120]
[343984111,1733169544493,-500.0,0.00025547,120]
[343984112,1733169544542,-618.4,0.00025547,120]
[343984113,1733169544588,-897.62,0.00025547,120]
[343984114,1733169544636,-500.0,0.00025547,120]
[343984115,1733169544681,-500.0,0.00025547,120]
[343984116,1733169544724,-748.23,0.00025547,120]
[343984117,1733169544768,-2326.42,0.00025547,120]
[343984118,1733169544811,-631.96,0.00025547,120]
[343984119,1733169544854,-12264.12,0.00025547,120]
[343984120,1733169544898,-3360.25,0.00025547,120]
[343984121,1733169544941,-500.0,0.00025547,120]
[343984122,1733169544985,-500.0,0.00025547,120]
[343984123,1733169545031,-793.36,0.00025547,120]
[343984124,1733169545075,-1512.73,0.00025547,120]
[343984125,1733169545118,-908.58,0.00025547,120]
[343984126,1733169545163,-500.0,0.00025547,120]
[343984127,1733169545206,-1149.66,0.00025547,120]
[343984128,1733169545250,-500.0,0.00025547,120]
[343984129,1733169545294,-3180.24,0.00025547,120]
[343984130,1733169545337,-982.45,0.00025547,120]
[343984131,1733169545382,-3437.65,0.00025547,120]
[343984132,1733169545431,-2186.91,0.00025547,120]
[343984133,1733169545481,-641.83,0.00025547,120]
[343984134,1733169545528,-1267.07,0.00025547,120]
[343984135,1733169545577,-500.0,0.00025547,120]
[343984136,1733169545621,-3120.06,0.00025547,120]
[343984137,1733169546000,-2544.61,0.00025547,120]
[343984138,1733169546042,-500.0,0.00025547,120]
[343984139,1733169546086,-2280.76,0.00025547,120]
[343984140,1733169546132,-586.91,0.00025547,120]
[343984141,1733169546174,-500.0,0.00025547,120]
[343984142,1733169546216,-500.0,0.00025547,120]
[343984143,1733169546257,-1187.33,0.00025547,120]
[343984144,1733169546298,-500.0,0.00025547,120]
[343984145,1733169546340,-500.0,0.00025547,120]
[343984146,1733169546385,-381.51548969,0.00025547,120]
[343984147,1733169546426,-500.0,0.00025547,120]
[343984148,1733169546467,-3187.8,0.00025547,120]
[343984149,1733169546507,-835.54,0.00025547,120]
[343984150,1733169546552,-646.09,0.00025547,120]
[343984151,1733169546596,-700.0,0.00025547,120]
[343984152,1733169546642,-500.0,0.00025547,120]
[343984153,1733169546685,-500.0,0.00025547,120]
[343984154,1733169546730,-500.0,0.00025547,120]
[343984155,1733169546775,-1643.01,0.00025547,120]
[343984156,1733169546822,-500.0,0.00025547,120]
[343984157,1733169546867,-500.0,0.00025547,120]
[343984158,1733169546914,-948.79,0.00025547,120]
[343984159,1733169546961,-500.0,0.00025547,120]
[343984160,1733169547009,-3559.29,0.00025547,120]
[343984161,1733169547057,-3325.5,0.00025547,120]
[343984162,1733169547110,-581.49,0.00025547,120]
[343984163,1733169547160,-2351.39,0.00025547,120]
[343984164,1733169547208,-621.14,0.00025547,120]
[343984165,1733169547255,-503.19,0.00025547,120]
[343984166,1733169547300,-1663.95,0.00025547,120]
[343984167,1733169547343,-500.0,0.00025547,120]
[343984168,1733169547390,-1118.58,0.00025547,120]
[343984169,1733169547435,-745.04,0.00025547,120]
[343984170,1733169547479,-4289.07,0.00025547,120]
[343984171,1733169547524,-500.0,0.00025547,120]
[343984172,1733169547571,-500.0,0.00025547,120]
[343984173,1733169547617,-1284.07,0.00025547,120]
[343984174,1733169547666,-4507.19,0.00025547,120]
[343984175,1733169547710,-890.64,0.00025547,120]
[343984176,1733169547755,-917.02,0.00025547,120]
[343984177,1733169547799,-2525.37,0.00025547,120]
[343984178,1733169547843,-500.0,0.00025547,120]
[343984179,1733169547889,-580.95,0.00025547,120]
[343984180,1733169547934,-2534.0,0.00025547,120]
[343984181,1733169547978,-6207.23,0.00025547,120]
[343984182,1733169548021,-500.0,0.00025547,120]
[343984183,1733169548064,-500.0,0.00025547,120]
[343984184,1733169548106,-1470.42,0.00025547,120]
[343984185,1733169548148,-1114.51,0.00025547,60]
[343984186,1733169548191,-2448.92,0.00025547,120]
[343984187,1733169548233,-500.0,0.00025547,120]
[343984188,1733169548276,-513.46,0.00025547,120]
[343984189,1733169548318,-622.20593243,0.00025547,120]
[343984190,1733169548360,-500.0,0.00025547,120]
[343984191,1733169548403,-1950.33,0.00025547,120]
[343984192,1733169548446,-3054.87,0.00025547,120]
[343984193,1733169548490,-870.88,0.00025547,120]
[343984194,1733169548536,-500.0,0.00025547,120]
[343984195,1733169548579,-228.98066835,0.00025547,120]
[343984196,1733169548624,-2228.68,0.00025547,120]
[343984197,1733169548669,-515.92859789,0.00025547,120]
[343984198,1733169548715,-3075.15,0.00025547,120]
[343984199,1733169548757,-500.0,0.00025547,120]
[343984200,1733169548800,-923.08,0.00025547,120]
[343984201,1733169548841,-544.54,0.00025547,120]
[343984202,1733169548886,-500.0,0.00025547,120]
[343984203,1733169548934,-500.0,0.00025547,120]
[343984204,1733169548975,-500.0,0.00025547,120]
[343984205,1733169549016,-2991.85,0.00025547,120]
[343984206,1733169549057,-500.0,0.00025547,120]
[343984207,1733169549097,-647.31016651,0.00025547,120]
[343984208,1733169549140,-3418.87,0.00025547,120]
[343984209,1733169549183,-1092.9,0.00025547,120]
[343984210,1733169549226,-571.61,0.00025547,120]
[343984211,1733169549271,-500.0,0.00025547,120]
[343984212,1733169549317,-811.66,0.00025547,120]
[343984213,1733169549361,-2196.28,0.00025547,120]
[343984214,1733169549405,-5734.44,0.00025547,120]
[343984215,1733169549451,-522.51352907,0.00025547,120]
[343984216,1733169549494,-500.0,0.00025547,120]
[343984217,1733169549537,-2473.71,0.00025547,120]
[343984218,1733169549584,-500.0,0.00025547,120]
[343984219,1733169549628,-500.0,0.00025547,120]
[343984220,1733169549673,-1131.45,0.00025547,120]
[343984221,1733169549715,-500.0,0.00025547,120]
[343984222,1733169549758,-3287.72,0.00025547,120]
[343984223,1733169549802,-684.17,0.00025547,120]
[343984224,1733169549845,-5388.18,0.00025547,120]
[343984225,1733169549889,-500.0,0.00025547,120]
[343984226,1733169549929,-3026.65,0.00025547,120]
[343984227,1733169549968,-500.0,0.00025547,120]
[343984228,1733169550007,-663.27,0.00025547,120]
[343984229,1733169550048,-500.0,0.00025547,120]
[343984230,1733169550089,-2668.13,0.00025547,120]
[343984231,1733169550447,-500.0,0.00025547,120]
[343984232,1733169550500,-535.28,0.00025547,120]
[343984233,1733169550545,-1670.84,0.00025547,120]
[343984234,1733169550589,-500.0,0.00025547,120]
[343984235,1733169550641,-895.09,0.00025547,120]
[343984236,1733169550686,-500.0,0.00025547,120]
[343984237,1733169550729,-1975.86,0.00025547,120]
[343984238,1733169550771,-2661.94,0.00025547,120]
[343984239,1733169550813,-500.0,0.00025547,120]
[343984240,1733169550856,-500.0,0.00025547,120]
[343984241,1733169550899,-3529.09,0.00025547,120]
[343984242,1733169550944,-5200.25,0.00025547,120]
[343984243,1733169550988,-3213.63,0.00025547,120]
[343984244,1733169551030,-978.51,0.00025547,120]
[343984245,1733169551071,-1404.4,0.00025547,120]
[343984246,1733169551111,-2688.97,0.00025547,120]
[343984247,1733169551152,-4908.38,0.00025547,120]
[343984248,1733169551194,-3927.33,0.00025547,120]
[343984249,1733169551237,-4766.8,0.00025547,120]
[343984250,1733169551279,-5216.64,0.00025547,120]
[343984251,1733169551320,-500.0,0.00025547,120]
[343984252,1733169551366,-1607.08,0.00025547,120]
[343984253,1733169551409,-500.0,0.00025547,120]
[343984254,1733169551454,-3025.07,0.00025547,120]
[343984255,1733169551500,-500.0,0.00025547,120]
[343984256,1733169551547,-500.0,0.00025547,120]
[343984257,1733169551594,-2839.58,0.00025547,120]
[343984258,1733169551643,-841.46,0.00025547,120]
[343984259,1733169551689,-500.0,0.00025547,120]
[343984260,1733169551737,-2729.59,0.00025547,120]
[343984261,1733169551784,-2073.17,0.00025547,120]
[343984262,1733169551829,-500.0,0.00025547,120]
[343984263,1733169551888,-2877.76,0.00025547,120]
[343984264,1733169551931,-3498.94,0.00025547,120]
[343984265,1733169551977,-6177.84,0.00025547,120]
[343984266,1733169552020,-5465.18,0.00025547,120]
[343984267,1733169552065,-1140.61,0.00025547,120]
[343984268,1733169552108,-682.14,0.00025547,120]
[343984269,1733169552155,-729.35,0.00025547,120]
[343984270,1733169552203,-7107.57,0.00025547,120]
[343984271,1733169552247,-4766.13,0.00025547,120]
[343984272,1733169552290,-500.0,0.00025547,120]
[343984273,1733169552333,-522.94,0.00025547,120]
[343984274,1733169552376,-500.0,0.00025547,120]
[343984275,1733169552421,-823.11,0.00025547,120]
[343984276,1733169552463,-31749.53,0.00025547,120]
[343984277,1733169552507,-3729.24,0.00025547,120]
[343984278,1733169552551,-1786.36,0.00025547,120]
[343984279,1733169552594,-500.0,0.00025547,30]
[343984280,1733169552638,-500.0,0.00025547,120]
[343984281,1733169552680,-1433.32,0.00025547,120]
[343984282,1733169552722,-2298.11,0.00025547,120]
[343984283,1733169552764,-5593.29,0.00025547,120]
[343984284,1733169552809,-500.0,0.00025547,120]
[343984285,1733169552852,-500.0,0.00025547,120]
[343984286,1733169552896,-1432.32,0.00025547,120]
[343984287,1733169552939,-538.99771839,0.00025547,120]
[343984288,1733169552982,-1134.59,0.00025547,120]
[343984289,1733169553025,-718.76,0.00025547,120]
[343984290,1733169553068,-2915.48,0.00025547,120]
[343984291,1733169553108,-1883.27,0.00025547,120]
[343984292,1733169553149,-500.0,0.00025547,120]
[343984293,1733169553197,-2649.7,0.00025547,120]
[343984294,1733169553269,-500.0,0.00025547,120]
[343984295,1733169553341,-3487.24,0.00025547,120]
[343984296,1733169553414,-20797.64,0.00025547,120]
[343984297,1733169553491,-500.0,0.00025547,120]
[343984298,1733169553555,-2924.44,0.00025547,120]
[343984299,1733169553624,-2057.6,0.00025547,120]
[343984300,1733169553688,-5509.29,0.00025547,120]
[343984301,1733169553752,-4788.27,0.00025547,120]
[343984302,1733169553819,-500.0,0.00025547,120]
[343984303,1733169553884,-500.0,0.00025547,120]
[343984304,1733169553950,-6930.13,0.00025547,120]
[343984305,1733169554015,-500.0,0.00025547,120]
[343984306,1733169554078,-7028.86,0.00025547,120]
[343984307,1733169554142,-1803.13,0.00025547,120]
[343984308,1733169554208,-500.0,0.00025547,120]
[343984309,1733169554272,-3102.05,0.00025547,120]
[343984310,1733169554349,-5759.46,0.00025547,120]
[343984311,1733169554415,-500.0,0.00025547,120]
[343984312,1733169554482,-500.0,0.00025547,120]
[343984313,1733169554550,-715.31,0.00025547,120]
[343984314,1733169554616,-1541.69,0.00025547,120]
[343984315,1733169554681,-500.0,0.00025547,120]
[343984316,1733169554747,-500.0,0.00025547,120]
[343984317,1733169554814,-7787.8,0.00025547,120]
[343984318,1733169554877,-418.02188059,0.00025547,120]
[343984319,1733169554943,-574.05515526,0.00025547,120]
[343984320,1733169555006,-903.21,0.00025547,120]
[343984321,1733169555071,-5512.62,0.00025547,120]
[343984322,1733169555135,-731.68,0.00025547,120]
[343984323,1733169555200,-500.0,0.00025547,120]
[343984324,1733169555263,-1079.25,0.00025547,120]
[343984325,1733169555327,-500.0,0.00025547,120]
[343984326,1733169555397,-500.0,0.00025547,120]
[343984327,1733169555460,-806.28,0.00025547,120]
[343984328,1733169555525,-1049.47,0.00025547,120]
[343984329,1733169555594,-17092.48,0.00025547,120]
[343984330,1733169555669,-500.0,0.00025547,120]
[343984331,1733169555732,-1062.78,0.00025547,120]
[343984332,1733169555797,-500.0,0.00025547,120]
[343984333,1733169555858,-3848.05,0.00025547,120]
[343984334,1733169555918,-580.18,0.00025547,120]
[343984335,1733169555976,-2528.15,0.00025547,120]
[343984336,1733169556036,-500.0,0.00025547,120]
[343984337,1733169556112,-529.81,0.00025547,120]
[343984338,1733169556189,-500.0,0.00025547,120]
[343984339,1733169556262,-5322.29,0.00025547,120]
[343984340,1733169556326,-1613.46,0.00025547,120]
[343984341,1733169556391,-2816.16,0.00025547,120]
[343984342,1733169556455,-663.6,0.00025547,120]
[343984343,1733169556518,-500.0,0.00025547,120]
[343984344,1733169556590,-880.7,0.00025547,120]
[343984345,1733169556655,-4195.25,0.00025547,120]
[343984346,1733169556717,-6844.27,0.00025547,120]
[343984347,1733169556778,-500.0,0.00025547,120]
[343984348,1733169556839,-1117.94,0.00025547,120]
[343984349,1733169556895,-500.0,0.00025547,120]
[343984350,1733169556952,-8824.85,0.00025547,120]
[343984351,1733169557008,-4791.52,0.00025547,120]
[343984352,1733169557067,-2596.48,0.00025547,120]
[343984353,1733169557123,-500.0,0.00025547,120]
[343984354,1733169557167,-500.0,0.00025547,120]
[343984355,1733169557218,-3760.91,0.00025547,120]
[343984356,1733169557260,-683.6,0.00025547,120]
[343984357,1733169557994,-3052.97,0.00025547,120]
[343984358,1733169558048,-2061.14,0.00025547,30]
[343984359,1733169558094,-346.22844546,0.00025547,120]
[343984360,1733169558141,-500.0,0.00025547,120]
[343984361,1733169558186,-1353.46,0.00025547,120]
[343984362,1733169558232,-3811.16,0.00025547,120]
[343984363,1733169558277,-584.0,0.00025547,120]
[343984364,1733169558322,-1668.31,0.00025547,120]
[343984365,1733169558367,-721.18,0.00025547,120]
[343984366,1733169558411,-2178.58,0.00025547,120]
[343984367,1733169558455,-500.0,0.00025547,120]
[343984368,1733169558499,-500.0,0.00025547,120]
[343984369,1733169558548,-26439.53,0.00025547,120]
[343984370,1733169558600,-13422.03,0.00025547,120]
[343984371,1733169558648,-500.0,0.00025547,120]
[343984372,1733169558695,-500.0,0.00025547,120]
[343984373,1733169558740,-500.0,0.00025547,120]
[343984374,1733169558782,-2055.7,0.00025547,120]
[343984375,1733169558826,-6506.01,0.00025547,120]
[343984376,1733169558870,-17851.52,0.00025547,120]
[343984377,1733169558914,-500.0,0.00025547,120]
[343984378,1733169558957,-1160.38,0.00025547,120]
[343984379,1733169559001,-4324.49,0.00025547,120]
[343984380,1733169559043,-500.0,0.00025547,120]
[343984381,1733169559086,-500.0,0.00025547,120]
[343984382,1733169559131,-3213.25,0.00025547,120]
[343984383,1733169559178,-500.0,0.00025547,120]
[343984384,1733169559228,-559.05,0.00025547,120]
[343984385,1733169559280,-907.5,0.00025547,120]